fUSD/lending_fUSD_20241223
["ID","MTS","AMOUNT","RATE_DAILY","PERIOD"]
[346413536,1734949863262,-500.0,0.00019452,2]
[346413537,1734949863272,-500.0,0.00019452,2]
[346413538,1734949863281,-500.0,0.00019452,2]
[346413539,1734949863291,-500.0,0.00019452,2]
[346413540,1734949863301,-500.0,0.00019452,2]
[346413541,1734949863311,-633.98830448,0.00019452,2]
[346413542,1734949863320,-500.0,0.00019452,2]
[346413543,1734949863330,-505.78414694,0.00019452,2]
[346413544,1734949863340,-1043.51,0.00019452,2]
[346413545,1734949863350,-500.0,0.00019452,2]
[346413546,1734949863360,-500.0,0.00019452,2]
[346413547,1734949863370,-741.82,0.00019452,2]
[346413548,1734949863379,-501.29150528,0.00019452,2]
[346413549,1734949863389,-500.0,0.00019452,2]
[346413550,1734949863402,-500.0,0.00019452,2]
[346413551,1734949863413,-500.0,0.00019452,2]
[346413552,1734949863423,-543.43,0.00019452,2]
[346413553,1734949863433,-500.0,0.00019452,2]
[346413554,1734949863444,-500.0,0.00019452,2]
[346413555,1734949863454,-516.65,0.00019452,2]
[346413556,1734949863464,-500.0,0.00019452,2]
[346413557,1734949863474,-500.0,0.00019452,2]
[346413558,1734949863484,-500.0,0.00019452,2]
[346413559,1734949863494,-500.0,0.00019452,2]
[346413560,1734949863504,-500.0,0.00019452,2]
[346413561,1734949863514,-1579.68,0.00019452,2]
[346413562,1734949863524,-500.0,0.00019452,2]
[346413563,1734949863533,-500.0,0.00019452,2]
[346413564,1734949863543,-500.0,0.00019452,2]
[346413565,1734949863553,-547.14,0.00019452,2]
[346413566,1734949863563,-500.0,0.00019452,2]
[346413567,1734949863573,-433.26442326,0.00019452,2]
[346413568,1734949863583,-500.0,0.00019452,2]
[346413569,1734949863593,-500.0,0.00019452,2]
[346413570,1734949863604,-1952.06,0.00019452,2]
[346413571,1734949863615,-500.0,0.00019452,2]
[346413572,1734949863626,-500.0,0.00019452,2]
[346413573,1734949863636,-500.0,0.00019452,2]
[346413574,1734949863650,-500.0,0.00019452,2]
[346413575,1734949863661,-500.0,0.00019452,2]
[346413576,1734949863672,-500.0,0.00019452,2]
[346413577,1734949863683,-500.0,0.00019452,2]
[346413578,1734949863692,-626.13,0.00019452,2]
[346413579,1734949863702,-576.66,0.00019452,2]
[346413580,1734949863713,-3323.19,0.00019452,2]
[346413581,1734949863723,-500.0,0.00019452,2]
[346413582,1734949863732,-955.01,0.00019452,2]
[346413583,1734949863742,-500.0,0.00019452,2]
[346413584,1734949863752,-500.0,0.00019452,2]
[346413585,1734949863762,-500.0,0.00019452,2]
[346413586,1734949863772,-500.0,0.00019452,2]
[346413587,1734949863782,-500.0,0.00019452,2]
[346413588,1734949863794,-573.92,0.00019452,2]
[346413589,1734949863803,-500.0,0.00019452,2]
[346413590,1734949863814,-500.0,0.00019452,2]
[346413591,1734949863827,-500.0,0.00019452,2]
[346413592,1734949863837,-952.47,0.00019452,2]
[346413593,1734949863847,-927.72,0.00019452,2]
[346413594,1734949863857,-500.0,0.00019452,2]
[346413595,1734949863867,-200.0,0.00019452,2]
[346413596,1734949863876,-500.0,0.00019452,2]
[346413597,1734949863886,-500.0,0.00019452,2]
[346413598,1734949863898,-500.0,0.00019452,2]
[346413599,1734949863908,-500.0,0.00019452,2]
[346413600,1734949863918,-500.0,0.00019452,2]
[346413601,1734949863929,-500.0,0.00019452,2]
[346413602,1734949863939,-500.0,0.00019452,2]
[346413603,1734949863949,-500.0,0.00019452,2]
[346413604,1734949863958,-633.53602187,0.00019452,2]
[346413605,1734949863968,-541.15,0.00019452,2]
[346413606,1734949863978,-531.20135969,0.00019452,10]
[346413607,1734949863987,-500.0,0.00019452,2]
[346413608,1734949863997,-500.0,0.00019452,2]
[346413609,1734949864007,-500.0,0.00019452,2]
[346413610,1734949864017,-500.0,0.00019452,2]
[346413611,1734949864026,-500.0,0.00019452,2]
[346413612,1734949864036,-500.0,0.00019452,2]
[346413613,1734949864046,-500.0,0.00019452,2]
[346413614,1734949864056,-500.0,0.00019452,2]
[346413615,1734949864066,-501.48509902,0.00019452,2]
[346413616,1734949864076,-402.03741202,0.00019452,2]
[346413617,1734949864085,-584.09,0.00019452,2]
[346413618,1734949864095,-500.0,0.00019452,2]
[346413619,1734949864105,-500.0,0.00019452,2]
[346413620,1734949864115,-501.05272677,0.00019452,2]
[346413621,1734949864126,-939.61,0.00019452,2]
[346413622,1734949864136,-500.0,0.00019452,2]
[346413623,1734949864147,-500.0,0.00019452,2]
[346413624,1734949864156,-500.0,0.00019452,2]
[346413625,1734949864166,-500.0,0.00019452,2]
[346413626,1734949864176,-500.0,0.00019452,2]
[346413627,1734949864187,-500.0,0.00019452,2]
[346413628,1734949864197,-500.0,0.00019452,2]
[346413629,1734949864207,-500.0,0.00019452,2]
[346413630,1734949864216,-492.12798804,0.00019452,2]
[346413631,1734949864226,-500.0,0.00019452,2]
[346413632,1734949864236,-766.63,0.00019452,2]
[346413633,1734949864246,-500.0,0.00019452,2]
[346413634,1734949864256,-500.0,0.00019452,2]
[346413635,1734949864265,-500.0,0.00019452,2]
[346413636,1734949864275,-500.0,0.00019452,2]
[346413637,1734949864285,-500.0,0.00019452,2]
[346413638,1734949864294,-407.16391601,0.00019452,2]
[346413639,1734949864304,-558.54379777,0.00019452,2]
[346413640,1734949864314,-500.0,0.00019452,2]
[346413641,1734949864324,-500.0,0.00019452,2]
[346413642,1734949864334,-500.0,0.00019452,2]
[346413643,1734949864343,-500.0,0.00019452,2]
[346413644,1734949864353,-500.0,0.00019452,2]
[346413645,1734949864362,-774.65,0.00019452,2]
[346413646,1734949864371,-500.0,0.00019452,2]
[346413647,1734949864381,-500.0,0.00019452,2]
[346413648,1734949864391,-500.0,0.00019452,2]
[346413649,1734949864402,-500.0,0.00019452,2]
[346413650,1734949864412,-500.0,0.00019452,2]
[346413651,1734949864422,-502.30333363,0.00019452,2]
[346413652,1734949864432,-500.0,0.00019452,2]
[346413653,1734949864441,-500.0,0.00019452,2]
[346413654,1734949864451,-500.0,0.00019452,2]
[346413655,1734949864460,-500.0,0.00019452,2]
[346413656,1734949864470,-500.0,0.00019452,2]
[346413657,1734949864480,-502.63399982,0.00019452,2]
[346413658,1734949864489,-504.10167117,0.00019452,2]
[346413659,1734949864499,-500.0,0.00019452,2]
[346413660,1734949864509,-819.95,0.00019452,2]
[346413661,1734949864519,-500.0,0.00019452,2]
[346413662,1734949864529,-500.0,0.00019452,2]
[346413663,1734949864539,-500.0,0.00019452,2]
[346413664,1734949864549,-551.52,0.00019452,2]
[346413665,1734949864558,-500.0,0.00019452,2]
[346413666,1734949864568,-502.32742752,0.00019452,2]
[346413667,1734949864578,-500.0,0.00019452,2]
[346413668,1734949864588,-509.47380184,0.00019452,2]
[346413669,1734949864598,-591.09,0.00019452,2]
[346413670,1734949864608,-500.0,0.00019452,2]
[346413671,1734949864618,-730.55,0.00019452,2]
[346413672,1734949864628,-500.0,0.00019452,2]
[346413673,1734949864638,-500.0,0.00019452,2]
[346413674,1734949864650,-500.0,0.00019452,2]
[346413675,1734949864660,-500.0,0.00019452,2]
[346413676,1734949864670,-500.0,0.00019452,2]
[346413677,1734949864680,-500.0,0.00019452,2]
[346413678,1734949864690,-500.0,0.00019452,2]
[346413679,1734949864700,-500.0,0.00019452,2]
[346413680,1734949864709,-1166.26,0.00019452,2]
[346413681,1734949864719,-501.93969763,0.00019452,2]
[346413682,1734949864728,-1866.46,0.00019452,2]
[346413683,1734949864738,-659.41,0.00019452,2]
[346413684,1734949864748,-500.0,0.00019452,2]
[346413685,1734949864758,-500.0,0.00019452,2]
[346413686,1734949864768,-500.0,0.00019452,2]
[346413687,1734949864777,-500.0,0.00019452,2]
[346413688,1734949864787,-500.0,0.00019452,2]
[346413689,1734949864796,-708.57,0.00019452,2]
[346413690,1734949864807,-1041.21,0.00019452,2]
[346413691,1734949864819,-509.56748983,0.00019452,2]
[346413692,1734949864830,-500.0,0.00019452,2]
[346413693,1734949864839,-509.32107927,0.00019452,2]
[346413694,1734949864849,-500.0,0.00019452,2]
[346413695,1734949864859,-500.0,0.00019452,2]
[346413696,1734949864870,-500.0,0.00019452,2]
[346413697,1734949864879,-500.0,0.00019452,2]
[346413698,1734949864889,-500.0,0.00019452,2]
[346413699,1734949864900,-732.51,0.00019452,2]
[346413700,1734949864910,-500.0,0.00019452,2]
[346413701,1734949864920,-762.07,0.00019452,2]
[346413702,1734949864929,-1995.98,0.00019452,2]
[346413703,1734949864939,-500.0,0.00019452,2]
[346413704,1734949864948,-617.17,0.00019452,2]
[346413705,1734949864958,-500.0,0.00019452,2]
[346413706,1734949864967,-500.0,0.00019452,2]
[346413707,1734949864976,-500.0,0.00019452,2]
[346413708,1734949864987,-500.0,0.00019452,2]
[346413709,1734949864996,-500.0,0.00019452,2]
[346413710,1734949865006,-500.0,0.00019452,2]
[346413711,1734949865015,-2333.3,0.00019452,2]
[346413712,1734949865025,-500.0,0.00019452,2]
[346413713,1734949865130,-500.0,0.00019452,2]
[346413714,1734949865139,-500.0,0.00019452,2]
[346413715,1734949865152,-1666.84,0.00019452,2]
[346413716,1734949865164,-920.45,0.00019452,2]
[346413717,1734949865173,-630.75,0.00019452,2]
[346413718,1734949865182,-500.0,0.00019452,2]
[346413719,1734949865192,-500.0,0.00019452,2]
[346413720,1734949865201,-500.0,0.00019452,2]
[346413721,1734949865210,-500.0,0.00019452,2]
[346413722,1734949865220,-500.20912304,0.00019452,2]
[346413723,1734949865229,-500.0,0.00019452,2]
[346413724,1734949865239,-500.0,0.00019452,2]
[346413725,1734949865249,-507.95096105,0.00019452,2]
[346413726,1734949865259,-500.0,0.00019452,2]
[346413727,1734949865269,-500.0,0.00019452,2]
[346413728,1734949865279,-500.0,0.00019452,2]
[346413729,1734949865289,-589.17,0.00019452,2]
[346413730,1734949865298,-500.0,0.00019452,2]
[346413731,1734949865308,-500.0,0.00019452,2]
[346413732,1734949865317,-500.0,0.00019452,2]
[346413733,1734949865327,-500.0,0.00019452,2]
[346413734,1734949865337,-500.0,0.00019452,2]
[346413735,1734949865347,-500.0,0.00019452,2]
[346413736,1734949865356,-500.0,0.00019452,2]
[346413737,1734949865366,-507.39,0.00019452,2]
[346413738,1734949865375,-1039.84,0.00019452,2]
[346413739,1734949865385,-500.0,0.00019452,2]
[346413740,1734949865394,-500.0,0.00019452,2]
[346413741,1734949865406,-500.0,0.00019452,2]
[346413742,1734949865415,-500.0,0.00019452,2]
[346413743,1734949865425,-500.0,0.00019452,2]
[346413744,1734949865434,-500.0,0.00019452,2]
[346413745,1734949865444,-1805.88,0.00019452,2]
[346413746,1734949865454,-500.0,0.00019452,2]
[346413747,1734949865463,-500.0,0.00019452,2]
[346413748,1734949865473,-500.0,0.00019452,2]
[346413749,1734949865482,-500.0,0.00019452,2]
[346413750,1734949865491,-2198.71,0.00019452,2]
[346413751,1734949865501,-714.52,0.00019452,2]
[346413752,1734949865510,-520.86450792,0.00019452,2]
[346413753,1734949865520,-500.0,0.00019452,2]
[346413754,1734949865530,-2113.67,0.00019452,2]
[346413755,1734949865540,-2412.57,0.00019452,2]
[346413756,1734949865549,-500.0,0.00019452,2]
[346413757,1734949865559,-500.0,0.00019452,2]
[346413758,1734949865569,-500.0,0.00019452,2]
[346413759,1734949865579,-500.0,0.00019452,2]
[346413760,1734949865590,-500.0,0.00019452,2]
[346413761,1734949865601,-500.0,0.00019452,2]
[346413762,1734949865611,-500.0,0.00019452,2]
[346413763,1734949865621,-500.0,0.00019452,2]
[346413764,1734949865630,-500.0,0.00019452,2]
[346413765,1734949865640,-2102.29,0.00019452,2]
[346413766,1734949865651,-500.0,0.00019452,2]
[346413767,1734949865661,-1607.49,0.00019452,2]
[346413768,1734949865670,-500.0,0.00019452,2]
[346413769,1734949865679,-500.0,0.00019452,2]
[346413770,1734949865689,-580.72663504,0.00019452,2]
[346413771,1734949865698,-500.0,0.00019452,2]
[346413772,1734949865708,-500.0,0.00019452,2]
[346413773,1734949865717,-1799.88,0.00019452,2]
[346413774,1734949865727,-502.73706233,0.00019452,2]
[346413775,1734949865735,-500.0,0.00019452,2]
[346413776,1734949865745,-500.0,0.00019452,2]
[346413777,1734949865754,-204.13269294,0.00019452,2]
[346413778,1734949865763,-1295.96,0.00019452,2]
[346413779,1734949865772,-500.0,0.00019452,2]
[346413780,1734949865781,-500.0,0.00019452,2]
[346413781,1734949865790,-500.0,0.00019452,2]
[346413782,1734949865799,-500.0,0.00019452,2]
[346413783,1734949865808,-500.0,0.00019452,2]
[346413784,1734949865824,-404.03466506,0.00019452,2]
[346413785,1734949865834,-500.0,0.00019452,2]
[346413786,1734949865844,-623.02,0.00019452,2]
[346413787,1734949865853,-1449.97,0.00019452,2]
[346413788,1734949865862,-500.0,0.00019452,2]
[346413789,1734949865871,-500.0,0.00019452,2]
[346413790,1734949865881,-499.30868463,0.00019452,2]
[346413791,1734949865890,-500.0,0.00019452,2]
[346413792,1734949865900,-500.0,0.00019452,2]
[346413793,1734949865910,-500.0,0.00019452,2]
[346413794,1734949865919,-993.36,0.00019452,2]
[346413795,1734949865929,-500.0,0.00019452,2]
[346413796,1734949865938,-500.0,0.00019452,2]
[346413797,1734949865947,-1286.84,0.00019452,2]
[346413798,1734949865956,-939.64,0.00019452,2]
[346413799,1734949865965,-500.0,0.00019452,2]
[346413800,1734949865975,-500.0,0.00019452,2]
[346413801,1734949865984,-963.93,0.00019452,2]
[346413802,1734949865993,-500.0,0.00019452,2]
[346413803,1734949866003,-500.0,0.00019452,2]
[346413804,1734949866011,-563.1,0.00019452,2]
[346413805,1734949866021,-500.0,0.00019452,2]
[346413806,1734949866030,-531.42,0.00019452,2]
[346413807,1734949866039,-500.0,0.00019452,2]
[346413808,1734949866048,-500.0,0.00019452,2]
[346413809,1734949866058,-500.0,0.00019452,2]
[346413810,1734949866067,-500.0,0.00019452,2]
[346413811,1734949866076,-960.83,0.00019452,2]
[346413812,1734949866085,-803.94,0.00019452,2]
[346413813,1734949866095,-500.0,0.00019452,2]
[346413814,1734949866103,-505.84221613,0.00019452,2]
[346413815,1734949866113,-500.0,0.00019452,2]
[346413816,1734949866122,-500.0,0.00019452,2]
[346413817,1734949866132,-832.95,0.00019452,2]
[346413818,1734949866141,-500.0,0.00019452,2]
[346413819,1734949866151,-500.0,0.00019452,2]
[346413820,1734949866161,-500.0,0.00019452,2]
[346413821,1734949866170,-500.0,0.00019452,2]
[346413822,1734949866179,-500.0,0.00019452,2]
[346413823,1734949866189,-500.0,0.00019452,2]
[346413824,1734949866198,-500.0,0.00019452,2]
[346413825,1734949866207,-500.0,0.00019452,2]
[346413826,1734949866217,-1482.93,0.00019452,2]
[346413827,1734949866226,-500.0,0.00019452,2]
[346413828,1734949866235,-500.0,0.00019452,2]
[346413829,1734949866244,-500.0,0.00019452,2]
[346413830,1734949866253,-500.0,0.00019452,2]
[346413831,1734949866263,-500.0,0.00019452,2]
[346413832,1734949866272,-500.0,0.00019452,2]
[346413833,1734949866281,-500.0,0.00019452,2]
[346413834,1734949866290,-513.74897759,0.00019452,2]
[346413835,1734949866299,-500.0,0.00019452,2]
[346413836,1734949866309,-500.0,0.00019452,2]
[346413837,1734949866318,-500.0,0.00019452,2]
[346413838,1734949866328,-500.0,0.00019452,2]
[346413839,1734949866337,-500.0,0.00019452,2]
[346413840,1734949866347,-500.0,0.00019452,2]
[346413841,1734949866356,-500.0,0.00019452,2]
[346413842,1734949866365,-500.0,0.00019452,2]
[346413843,1734949866375,-2440.8,0.00019452,2]
[346413844,1734949866384,-500.0,0.00019452,2]
[346413845,1734949866393,-473.79492897,0.00019452,2]
[346413846,1734949866404,-500.82456931,0.00019452,2]
[346413847,1734949866414,-500.0,0.00019452,2]
[346413848,1734949866423,-1429.61,0.00019452,2]
[346413849,1734949866432,-500.0,0.00019452,2]
[346413850,1734949866441,-1548.91,0.00019452,2]
[346413851,1734949866450,-500.0,0.00019452,2]
[346413852,1734949866459,-919.59,0.00019452,2]
[346413853,1734949866468,-500.0,0.00019452,2]
[346413854,1734949866478,-500.0,0.00019452,2]
[346413855,1734949866487,-500.0,0.00019452,2]
[346413856,1734949866496,-1731.24,0.00019452,2]
[346413857,1734949866505,-500.0,0.00019452,2]
[346413858,1734949866514,-500.0,0.00019452,2]
[346413859,1734949866523,-500.0,0.00019452,2]
[346413860,1734949866532,-500.0,0.00019452,2]
[346413861,1734949866541,-500.0,0.00019452,2]
[346413862,1734949866551,-500.0,0.00019452,2]
[346413863,1734949866560,-500.0,0.00019452,2]
[346413864,1734949866570,-500.0,0.00019452,2]
[346413865,1734949866581,-500.0,0.00019452,2]
[346413866,1734949866590,-631.26,0.00019452,2]
[346413867,1734949866599,-612.0,0.00019452,2]
[346413868,1734949866608,-513.9,0.00019452,2]
[346413869,1734949866617,-234.78109536,0.00019452,2]
[346413870,1734949866626,-500.0,0.00019452,2]
[346413871,1734949866636,-500.0,0.00019452,2]
[346413872,1734949866645,-500.0,0.00019452,2]
[346413873,1734949866655,-500.0,0.00019452,2]
[346413874,1734949866664,-500.0,0.00019452,2]
[346413875,1734949866673,-500.0,0.00019452,2]
[346413876,1734949866683,-500.0,0.00019452,2]
[346413877,1734949866692,-503.57243118,0.00019452,2]
[346413878,1734949866702,-500.0,0.00019452,2]
[346413879,1734949866711,-500.0,0.00019452,2]
[346413880,1734949866719,-500.0,0.00019452,2]
[346413881,1734949866729,-500.0,0.00019452,2]
[346413882,1734949866738,-500.0,0.00019452,2]
[346413883,1734949866748,-500.0,0.00019452,2]
[346413884,1734949866757,-500.0,0.00019452,2]
[346413885,1734949866766,-500.0,0.00019452,2]
[346413886,1734949866776,-500.0,0.00019452,2]
[346413887,1734949866786,-500.0,0.00019452,2]
[346413888,1734949866795,-500.0,0.00019452,2]
[346413889,1734949866804,-623.35,0.00019452,2]
[346413890,1734949866813,-2675.62,0.00019452,2]
[346413891,1734949866826,-500.0,0.00019452,2]
[346413892,1734949866835,-803.45,0.00019452,2]
[346413893,1734949866844,-500.0,0.00019452,2]
[346413894,1734949866854,-725.96,0.00019452,2]
[346413895,1734949866863,-500.0,0.00019452,2]
[346413896,1734949866872,-500.0,0.00019452,2]
[346413897,1734949866881,-500.0,0.00019452,2]
[346413898,1734949866890,-500.0,0.00019452,2]
[346413899,1734949866901,-500.0,0.00019452,2]
[346413900,1734949866911,-500.0,0.00019452,2]
[346413901,1734949866920,-500.0,0.00019452,2]
[346413902,1734949866929,-1695.34,0.00019452,2]
[346413903,1734949866938,-500.0,0.00019452,2]
[346413904,1734949866947,-500.0,0.00019452,2]
[346413905,1734949866956,-500.0,0.00019452,2]
[346413906,1734949866965,-915.73,0.00019452,2]
[346413907,1734949866975,-500.0,0.00019452,2]
[346413908,1734949866984,-510.4320097,0.00019452,2]
[346413909,1734949866994,-500.0,0.00019452,2]
[346413910,1734949867004,-500.0,0.00019452,2]
[346413911,1734949867013,-500.0,0.00019452,2]
[346413912,1734949867022,-500.0,0.00019452,2]
[346413913,1734949867031,-859.43,0.00019452,2]
[346413914,1734949867040,-1022.96,0.00019452,2]
[346413915,1734949867051,-503.29005468,0.00019452,2]
[346413916,1734949867060,-500.0,0.00019452,2]
[346413917,1734949867069,-500.0,0.00019452,2]
[346413918,1734949867078,-1073.06,0.00019452,2]
[346413919,1734949867087,-500.0,0.00019452,2]
[346413920,1734949867096,-500.0,0.00019452,2]
[346413921,1734949867105,-500.0,0.00019452,2]
[346413922,1734949867114,-500.0,0.00019452,2]
[346413923,1734949867123,-500.0,0.00019452,2]
[346413924,1734949867132,-500.0,0.00019452,2]
[346413925,1734949867141,-504.1122341,0.00019452,2]
[346413926,1734949867152,-500.0,0.00019452,2]
[346413927,1734949867162,-591.01,0.00019452,2]
[346413928,1734949867171,-4284.46,0.00019452,2]
[346413929,1734949867180,-500.0,0.00019452,2]
[346413930,1734949867190,-500.0,0.00019452,2]
[346413931,1734949867199,-500.0,0.00019452,2]
[346413932,1734949867208,-933.72,0.00019452,2]
[346413933,1734949867218,-500.0,0.00019452,2]
[346413934,1734949867227,-1237.94,0.00019452,2]
[346413935,1734949867237,-500.0,0.00019452,2]
[346413936,1734949867246,-500.0,0.00019452,2]
[346413937,1734949867255,-696.17,0.00019452,2]
[346413938,1734949867265,-500.0,0.00019452,2]
[346413939,1734949867275,-500.0,0.00019452,2]
[346413940,1734949867284,-500.0,0.00019452,2]
[346413941,1734949867294,-500.0,0.00019452,2]
[346413942,1734949867304,-506.04963214,0.00019452,2]
[346413943,1734949867314,-572.59,0.00019452,2]
[346413944,1734949867324,-500.0,0.00019452,2]
[346413945,1734949867333,-517.73,0.00019452,2]
[346413946,1734949867343,-500.0,0.00019452,2]
[346413947,1734949867353,-500.0,0.00019452,2]
[346413948,1734949867362,-500.0,0.00019452,2]
[346413949,1734949867372,-506.24,0.00019452,2]
[346413950,1734949867382,-500.0,0.00019452,2]
[346413951,1734949867391,-500.0,0.00019452,2]
[346413952,1734949867402,-509.19903841,0.00019452,2]
[346413953,1734949867411,-500.0,0.00019452,2]
[346413954,1734949867421,-1850.26737097,0.00019452,2]
[346413955,1734949868255,-386.08262903,0.00019452,2]
[346413956,1734949868265,-500.0,0.00019452,2]
[346413957,1734949868275,-500.0,0.00019452,2]
[346413958,1734949868287,-500.0,0.00019452,2]
[346413959,1734949868297,-500.0,0.00019452,2]
[346413960,1734949868307,-500.0,0.00019452,2]
[346413961,1734949868317,-500.0,0.00019452,2]
[346413962,1734949868327,-500.0,0.00019452,2]
[346413963,1734949868337,-466.72761097,0.00019452,2]
[346413964,1734949868354,-961.8478664,0.00019452,2]
[346413965,1734949869232,-1170.0,0.00018701,2]
[346413966,1734949869242,-176.31784866,0.0001889,2]
[346413967,1734949869252,-500.0,0.00019178,2]
[346413968,1734949869262,-323.19452263,0.00019452,2]
[346413969,1734949869271,-500.0,0.00019452,2]
[346413970,1734949869280,-319.15755493,0.00019452,2]
[346413971,1734949869289,-640.22,0.00019452,2]
[346413972,1734949869299,-500.0,0.00019452,2]
[346413973,1734949869308,-500.0,0.00019452,2]
[346413974,1734949869318,-500.0,0.00019452,2]
[346413975,1734949869328,-746.11,0.00019452,2]
[346413976,1734949869338,-500.0,0.00019452,2]
[346413977,1734949869348,-500.0,0.00019452,2]
[346413978,1734949869358,-1104.75,0.00019452,2]
[346413979,1734949869367,-613.12,0.00019452,2]
[346413980,1734949869377,-500.0,0.00019452,2]
[346413981,1734949869387,-500.0,0.00019452,2]
[346413982,1734949869396,-500.0,0.00019452,2]
[346413983,1734949869412,-525.36,0.00019452,2]
[346413984,1734949869423,-829.87,0.00019452,2]
[346413985,1734949869433,-500.0,0.00019452,2]
[346413986,1734949869442,-745.32,0.00019452,2]
[346413987,1734949869452,-526.12,0.00019452,2]
[346413988,1734949869462,-500.0,0.00019452,2]
[346413989,1734949869472,-503.0,0.00019452,2]
[346413990,1734949869482,-1071.96,0.00019452,2]
[346413991,1734949869491,-500.0,0.00019452,2]
[346413992,1734949869500,-500.0,0.00019452,2]
[346413993,1734949869510,-500.0,0.00019452,2]
[346413994,1734949869519,-851.99,0.00019452,2]
[346413995,1734949869529,-2168.05,0.00019452,2]
[346413996,1734949869538,-500.0,0.00019452,2]
[346413997,1734949869548,-500.0,0.00019452,2]
[346413998,1734949869557,-509.39,0.00019452,2]
[346413999,1734949869567,-500.0,0.00019452,2]
[346414000,1734949869576,-501.03785211,0.00019452,2]
[346414001,1734949869586,-509.62709313,0.00019452,2]
[346414002,1734949869595,-500.0,0.00019452,2]
[346414003,1734949869605,-500.0,0.00019452,2]
[346414004,1734949869615,-500.0,0.00019452,2]
[346414005,1734949869624,-500.0,0.00019452,2]
[346414006,1734949869633,-500.0,0.00019452,2]
[346414007,1734949869642,-500.0,0.00019452,2]
[346414008,1734949869652,-500.0,0.00019452,2]
[346414009,1734949869662,-500.0,0.00019452,2]
[346414010,1734949869671,-500.0,0.00019452,2]
[346414011,1734949869681,-503.47044237,0.00019452,2]
[346414012,1734949869690,-500.0,0.00019452,2]
[346414013,1734949869699,-500.0,0.00019452,2]
[346414014,1734949869708,-500.0,0.00019452,2]
[346414015,1734949869717,-500.0,0.00019452,2]
[346414016,1734949869726,-502.45443555,0.00019452,2]
[346414017,1734949869735,-549.41,0.00019452,2]
[346414018,1734949869744,-500.0,0.00019452,2]
[346414019,1734949869753,-500.0,0.00019452,2]
[346414020,1734949869762,-500.0,0.00019452,2]
[346414021,1734949869771,-1339.65,0.00019452,2]
[346414022,1734949869780,-500.0,0.00019452,2]
[346414023,1734949869789,-500.0,0.00019452,2]
[346414024,1734949869799,-533.6,0.00019452,2]
[346414025,1734949869808,-500.0,0.00019452,2]
[346414026,1734949869818,-500.0,0.00019452,2]
[346414027,1734949869829,-500.0,0.00019452,2]
[346414028,1734949869839,-500.0,0.00019452,2]
[346414029,1734949869848,-265.24407136,0.00019452,2]
[346414030,1734949869947,-500.0,0.00019178,2]
[346414031,1734949869956,-772.19592864,0.00019452,2]
[346414032,1734949869966,-169.91907136,0.00019452,2]
[346414033,1734949871215,-2757.92484696,0.00019178,2]
[346414034,1734949871234,-524.31588696,0.00019178,2]
[346414035,1734949871253,-1239.79132495,0.00019178,2]